bitfinex-derivatives/quotes_BTCF0:USTF0_20250106
["timestamp","ask_amount","ask_price","bid_price","bid_amount"]
[1736135291231,0.05585237,99141.0,99140.0,0.005]
[1736135291930,0.06585237,99141.0,99140.0,0.007]
[1736135292730,0.18670327,99141.0,99140.0,0.007]
[1736135293435,0.54750327,99141.0,99132.0,0.3608]
[1736135293638,0.045409,99133.0,99132.0,0.3608]
[1736135295137,0.045409,99133.0,99132.0,0.3648]
[1736135295942,0.046409,99133.0,99132.0,0.3608]
[1736135297241,0.045413,99125.0,99121.0,0.00052]
[1736135297430,0.045413,99125.0,99116.0,0.18043589]
[1736135297635,0.045416,99117.0,99116.0,0.18043589]
[1736135298053,0.045418,99113.0,99112.0,0.0304]
[1736135299351,0.045418,99113.0,99112.0,0.0334]
[1736135299552,0.046418,99113.0,99112.0,0.0404]
[1736135300255,0.046418,99113.0,99112.0,0.01]
[1736135300456,0.045423,99103.0,99102.0,1.5]
[1736135300754,0.045423,99103.0,99098.0,0.00151331]
[1736135301057,0.3608,99105.0,99098.0,0.00151331]
[1736135301259,0.045419,99112.0,99104.0,0.045422]
[1736135301562,0.001,99113.0,99104.0,0.045422]
[1736135301752,0.04542,99110.0,99104.0,0.045422]
[1736135302553,0.04542,99110.0,99104.0,0.049422]
[1736135303159,0.04642,99110.0,99104.0,0.049422]
[1736135303954,0.04642,99110.0,99105.0,0.3608]
[1736135304462,0.045421,99107.0,99106.0,0.032]
[1736135306457,0.046421,99107.0,99106.0,0.036]
[1736135307165,0.046421,99107.0,99106.0,0.038]
[1736135314359,0.001,99107.0,99106.0,0.038]
[1736135317657,0.046421,99107.0,99106.0,0.038]
[1736135322769,0.49769745,99107.0,99106.0,0.006]
[1736135324063,0.407221,99107.0,99106.0,0.006]
[1736135326366,0.408221,99107.0,99106.0,0.004]
[1736135326767,0.047421,99107.0,99106.0,0.004]
[1736135327071,0.045422,99105.0,99101.0,0.18043589]
[1736135327277,0.045422,99105.0,99102.0,0.18043589]
[1736135327469,0.003,99107.0,99102.0,0.18043589]
[1736135327674,0.045422,99104.0,99102.0,0.18043589]
[1736135328265,0.045423,99103.0,99100.0,0.4608]
[1736135328674,0.045423,99103.0,99101.0,1.5]
[1736135330178,0.12110931,99102.0,99101.0,1.5]
[1736135331573,0.045423,99103.0,99101.0,1.5]
[1736135333979,0.05563396,99103.0,99101.0,1.5]
[1736135334176,0.01021096,99103.0,99100.0,0.1]
[1736135334377,0.045424,99101.0,99100.0,0.1]
[1736135336785,0.045424,99101.0,99100.0,0.34129867]
[1736135338172,0.045424,99101.0,99100.0,0.1]
[1736135340183,0.045424,99101.0,99100.0,1.6]
[1736135340678,0.045424,99101.0,99100.0,0.1]
[1736135343683,0.045424,99101.0,99100.0,0.104]
[1736135344082,0.045424,99101.0,99100.0,0.101]
[1736135344383,0.048424,99101.0,99100.0,0.101]
[1736135344685,0.51274363,99107.0,99100.0,0.101]
[1736135344982,0.003,99101.0,99100.0,0.146424]
[1736135345182,0.003,99101.0,99100.0,0.145424]
[1736135345382,0.004,99101.0,99100.0,0.145424]
[1736135346085,0.005,99101.0,99100.0,1.645424]
[1736135346872,0.004,99101.0,99100.0,1.645424]
[1736135347072,0.006,99101.0,99100.0,1.645424]
[1736135347887,0.002,99101.0,99100.0,1.645424]
[1736135348082,0.27420501,99118.0,99100.0,1.9608]
[1736135348291,0.15106362,99112.0,99111.0,0.3608]
[1736135349386,0.045416,99117.0,99111.0,0.3608]
[1736135350978,0.045416,99117.0,99114.0,0.18074672]
[1736135351178,0.047416,99117.0,99114.0,0.18074672]
[1736135351580,0.23895067,99118.0,99114.0,0.18074672]
[1736135351787,0.003,99117.0,99116.0,0.045417]
[1736135352287,0.15106362,99123.0,99116.0,0.045417]
[1736135352488,0.15106362,99123.0,99120.0,0.3608]
[1736135352790,0.15106362,99123.0,99121.0,0.0319]
[1736135353086,0.15106362,99123.0,99122.0,1.5]
[1736135354090,0.09071524,99125.0,99122.0,1.5]
[1736135354280,0.09071524,99125.0,99122.0,1.501]
[1736135355482,0.13612724,99128.0,99122.0,1.501]
[1736135356183,0.13612724,99128.0,99122.0,0.001]
[1736135356691,0.13712724,99128.0,99122.0,0.001]
[1736135356891,0.001,99125.0,99121.0,1.53242]
[1736135357092,0.001,99125.0,99121.0,1.5319]
[1736135357277,0.001,99125.0,99124.0,0.045413]
[1736135357478,0.09371524,99128.0,99121.0,1.53242]
[1736135357681,0.09371524,99128.0,99121.0,1.5319]
[1736135357882,0.09171524,99128.0,99121.0,1.5319]
[1736135358081,0.001,99125.0,99121.0,1.5319]
[1736135358290,0.001,99125.0,99124.0,0.045413]
[1736135358486,0.09071524,99127.0,99121.0,1.53246]
[1736135358686,0.09071524,99127.0,99126.0,0.045412]
[1736135359991,0.045413,99125.0,99123.0,0.18048737]
[1736135360786,0.046413,99125.0,99123.0,0.18048737]
[1736135361195,0.045414,99124.0,99122.0,0.18048737]
[1736135362685,0.01026366,99133.0,99120.0,0.3608]
[1736135362686,0.045414,99121.0,99120.0,0.3608]
[1736135364402,0.045414,99121.0,99120.0,0.3618]
[1736135365097,0.047414,99121.0,99120.0,0.3618]
[1736135365592,0.045414,99121.0,99120.0,0.3618]
[1736135365894,0.048414,99121.0,99120.0,0.3608]
[1736135367189,0.046414,99121.0,99120.0,0.3608]
[1736135367389,0.048414,99121.0,99120.0,0.3608]
[1736135367790,0.046414,99121.0,99120.0,0.3608]
[1736135368084,0.047414,99121.0,99120.0,0.3608]
[1736135368290,0.046414,99121.0,99120.0,0.3608]
[1736135368594,0.05677572,99121.0,99120.0,0.3608]
[1736135370598,0.05577572,99121.0,99120.0,0.3608]
[1736135370899,0.05677572,99121.0,99120.0,0.3608]
[1736135371898,0.05577572,99121.0,99120.0,0.3608]
[1736135372093,0.05877572,99121.0,99120.0,0.3608]
[1736135373597,0.05777572,99121.0,99120.0,0.3608]
[1736135374299,0.05877572,99121.0,99120.0,0.3608]
[1736135374501,0.14949096,99121.0,99120.0,0.3608]
[1736135374997,0.14849096,99121.0,99120.0,0.3608]
[1736135375194,0.045416,99118.0,99117.0,0.18048737]
[1736135376194,0.045416,99118.0,99111.0,0.24104314]
[1736135376195,0.045417,99115.0,99111.0,0.18048737]
[1736135377105,0.37176173,99121.0,99115.0,0.045417]
[1736135377106,0.01296173,99121.0,99115.0,0.045417]
[1736135377297,0.01236172,99121.0,99115.0,0.045417]
[1736135377495,0.01036172,99121.0,99115.0,0.045417]
[1736135377695,0.045414,99122.0,99115.0,0.045417]
[1736135377900,0.09069606,99117.0,99115.0,0.045417]
[1736135378910,0.09069606,99118.0,99115.0,0.045417]
[1736135379098,0.09069606,99118.0,99115.0,0.046417]
[1736135379999,0.09069606,99117.0,99115.0,0.047417]
[1736135380408,0.09069606,99117.0,99115.0,0.048417]
[1736135381009,0.09069606,99117.0,99115.0,0.047417]
[1736135381303,0.09069606,99117.0,99115.0,0.048417]
[1736135381908,0.13611306,99117.0,99115.0,0.048417]
[1736135382510,0.045417,99117.0,99115.0,0.048417]
[1736135382900,0.045417,99117.0,99115.0,0.047417]
[1736135383101,0.045417,99117.0,99115.0,0.046417]
[1736135384016,0.13611306,99117.0,99115.0,0.046417]
[1736135385618,0.045417,99117.0,99115.0,0.046417]
[1736135386317,0.045417,99117.0,99115.0,0.045417]
[1736135386518,0.045417,99117.0,99115.0,0.046417]
[1736135387815,0.045417,99117.0,99115.0,0.28746014]
[1736135389322,0.045417,99117.0,99116.0,0.24104314]
[1736135390613,0.045417,99117.0,99116.0,0.24204314]
[1736135392414,0.045417,99117.0,99116.0,0.001]
[1736135405817,0.00999619,99122.0,99120.0,0.045415]
[1736135406029,0.15106362,99124.0,99123.0,0.045414]
[1736135406224,0.15106362,99124.0,99123.0,0.406214]
[1736135406628,0.15106362,99124.0,99123.0,1.906214]
[1736135407022,0.15306362,99124.0,99123.0,1.906214]
[1736135407228,0.19847662,99124.0,99123.0,1.5]
[1736135407835,0.19947662,99124.0,99123.0,1.5]
[1736135408335,0.048413,99124.0,99123.0,1.5]
[1736135409523,0.048413,99124.0,99122.0,0.3608]
[1736135409929,0.045415,99121.0,99118.0,0.30025696]
[1736135410939,0.09080919,99119.0,99117.0,0.045416]
[1736135411925,0.16750001,99121.0,99117.0,0.045416]
[1736135413127,0.16650001,99121.0,99117.0,0.045416]
[1736135413331,0.16650001,99121.0,99120.0,0.24130038]
[1736135413332,0.045415,99121.0,99120.0,0.24130038]
[1736135413837,0.046415,99121.0,99120.0,0.24130038]
[1736135414225,0.045415,99121.0,99120.0,0.24130038]
[1736135414429,0.046415,99121.0,99120.0,0.24130038]
[1736135417740,0.046415,99121.0,99117.0,0.24130038]
[1736135418141,0.045416,99119.0,99117.0,0.24130038]
[1736135419038,0.045416,99119.0,99114.0,1.88448356]
[1736135419039,0.045416,99118.0,99116.0,0.24130038]
[1736135420441,0.045416,99118.0,99114.0,0.02368356]
[1736135420442,0.15106362,99122.0,99114.0,0.02368356]
[1736135420739,0.406217,99115.0,99114.0,0.02368356]
[1736135422533,0.438117,99115.0,99114.0,0.02368356]
[1736135423337,0.045419,99111.0,99110.0,0.18099843]
[1736135423635,0.04542,99110.0,99107.0,0.18099843]
[1736135423838,0.40331251,99115.0,99107.0,0.18099843]
[1736135424044,0.04542,99109.0,99107.0,0.18099843]
[1736135424739,0.04542,99109.0,99106.0,0.18099843]
[1736135424947,0.045421,99108.0,99106.0,0.18099843]
[1736135426147,0.45153412,99107.0,99106.0,0.18099843]
[1736135427148,0.045421,99106.0,99102.0,0.18099843]
[1736135427340,0.36540001,99107.0,99102.0,0.18099843]
[1736135427541,0.3648,99107.0,99102.0,0.18099843]
[1736135427747,0.3658,99107.0,99102.0,0.18099843]
[1736135428351,0.09070194,99106.0,99101.0,0.18099843]
[1736135429056,0.045423,99103.0,99101.0,0.18099843]
[1736135429947,0.045423,99102.0,99100.0,0.1015133]
[1736135431246,0.09064837,99101.0,99100.0,0.1015133]
[1736135432349,0.13707137,99102.0,99100.0,0.1015133]
[1736135432655,0.001,99101.0,99100.0,0.1015133]
[1736135445253,0.09164837,99101.0,99100.0,0.1015133]
[1736135446657,0.001,99101.0,99100.0,0.1015133]
[1736135449555,0.12199549,99101.0,99100.0,0.1015133]
[1736135451157,0.001,99101.0,99100.0,0.28251173]
[1736135452253,0.001,99101.0,99100.0,0.1015133]
[1736135458063,0.001,99101.0,99100.0,0.34329219]
[1736135461862,0.001,99101.0,99100.0,0.1015133]
[1736135464460,0.001,99101.0,99100.0,0.34342516]
[1736135467575,0.001,99101.0,99100.0,0.1015133]
[1736135470367,0.001,99101.0,99100.0,0.1]
[1736135471667,0.15106362,99106.0,99104.0,0.045422]
[1736135471872,0.15106362,99106.0,99105.0,0.391]
[1736135472074,0.15106362,99106.0,99105.0,1.891]
[1736135472874,0.15406362,99106.0,99105.0,1.891]
[1736135473072,0.15406362,99106.0,99105.0,2.19150189]
[1736135473073,0.004,99106.0,99105.0,2.19150189]
[1736135474567,0.004,99106.0,99105.0,1.891]
[1736135475472,0.004,99106.0,99105.0,1.9237]
[1736135476877,0.004,99106.0,99105.0,1.9558]
[1736135477670,0.004,99106.0,99105.0,1.8366993]
[1736135478364,0.004,99106.0,99105.0,0.3366993]
[1736135478772,0.004,99106.0,99105.0,0.095]
[1736135479577,0.004,99106.0,99102.0,0.2416993]
[1736135479779,0.045423,99103.0,99102.0,0.2416993]
[1736135480878,0.047423,99103.0,99101.0,0.2416993]
[1736135481882,0.045423,99103.0,99101.0,0.2416993]
[1736135482081,0.002,99103.0,99100.0,0.1]
[1736135482383,0.045424,99101.0,99100.0,0.1]
[1736135483774,0.046424,99101.0,99100.0,0.1]
[1736135485381,0.05666193,99101.0,99100.0,0.1]
[1736135489188,0.05666193,99101.0,99100.0,1.6]
[1736135489884,0.05666193,99101.0,99100.0,0.1]
[1736135500384,0.05666193,99101.0,99100.0,1.6]
[1736135504001,0.05666193,99101.0,99100.0,0.1]
[1736135508299,0.05666193,99101.0,99100.0,0.3416993]
[1736135510706,0.05666193,99101.0,99100.0,0.1]
[1736135514095,0.10575457,99101.0,99100.0,0.1]
[1736135515904,0.14715457,99101.0,99100.0,0.1]
[1736135517101,0.045427,99093.0,99092.0,0.24214466]
[1736135517301,0.406227,99093.0,99092.0,0.24214466]
[1736135518099,0.406227,99093.0,99086.0,4e-05]
[1736135518100,0.3708,99093.0,99086.0,4e-05]
[1736135518297,0.04543,99087.0,99086.0,4e-05]
[1736135519412,0.04543,99087.0,99086.0,0.00204]
[1736135520003,0.04543,99087.0,99086.0,0.00704]
[1736135520308,0.09452264,99087.0,99086.0,0.00704]
[1736135521209,0.04543,99087.0,99086.0,0.00704]
[1736135522819,0.04543,99087.0,99086.0,0.00604]
[1736135523202,0.04543,99087.0,99086.0,0.00104]
[1736135523410,0.04543,99087.0,99086.0,0.00304]
[1736135523607,0.05570752,99087.0,99086.0,0.00304]
[1736135523907,0.045436,99075.0,99074.0,4e-05]
[1736135525101,0.406236,99075.0,99074.0,0.00304]
[1736135525298,0.045441,99062.0,99061.0,0.00151423]
[1736135526904,0.13610643,99062.0,99061.0,0.00151423]
[1736135527307,0.13710643,99062.0,99061.0,0.00651423]
[1736135528106,0.046441,99062.0,99061.0,0.00651423]
[1736135528515,0.046441,99062.0,99061.0,0.01051423]
[1736135529011,0.05679054,99062.0,99061.0,0.01051423]
[1736135529214,0.05679054,99062.0,99061.0,0.00751423]
[1736135529814,0.05579054,99062.0,99061.0,0.00651423]
[1736135539228,0.05579054,99062.0,99061.0,1.50651423]
[1736135545918,0.05579054,99062.0,99061.0,0.00651423]
[1736135547319,0.17671834,99062.0,99061.0,0.00651423]
[1736135548816,0.05579054,99062.0,99061.0,0.00651423]
[1736135550223,0.17671834,99062.0,99061.0,0.00651423]
[1736135551315,0.05579054,99062.0,99061.0,0.00651423]
[1736135553918,0.17671834,99062.0,99061.0,0.00651423]
[1736135555324,0.05579054,99062.0,99061.0,0.00651423]
[1736135559532,0.01034954,99062.0,99061.0,0.00651423]
[1736135559719,0.15128367,99064.0,99062.0,0.045441]
[1736135560928,0.15128367,99064.0,99062.0,0.046441]
[1736135561133,0.15128367,99064.0,99062.0,0.049441]
[1736135562225,0.19672467,99064.0,99062.0,0.004]
[1736135567631,0.55752467,99064.0,99062.0,0.004]
[1736135568933,0.15128367,99064.0,99062.0,0.049441]
[1736135569132,0.18128427,99069.0,99068.0,0.045439]
[1736135569331,0.57289833,99082.0,99063.0,0.0324]
[1736135569532,0.0641823,99080.0,99078.0,0.045434]
[1736135569736,0.57229832,99082.0,99079.0,0.0305]
[1736135569936,0.58249886,99082.0,99079.0,0.0305]
[1736135571232,0.004,99080.0,99078.0,0.045434]
[1736135571630,0.12107015,99081.0,99078.0,0.045434]
[1736135572639,0.12107015,99079.0,99078.0,0.045434]
[1736135573941,0.12107015,99080.0,99078.0,0.045434]
[1736135574240,0.004,99079.0,99078.0,0.045434]
[1736135574935,0.12107015,99080.0,99078.0,0.045434]
[1736135575140,0.003,99079.0,99078.0,0.045434]
[1736135576127,0.005,99079.0,99078.0,0.045434]
[1736135576826,0.002,99079.0,99078.0,0.045434]
[1736135577634,0.006,99079.0,99078.0,0.045434]
[1736135579031,0.004,99079.0,99078.0,0.045434]
[1736135579240,0.006,99079.0,99078.0,0.045434]
[1736135580837,0.005,99079.0,99078.0,0.045434]
[1736135581842,0.002,99079.0,99078.0,0.045434]
[1736135582044,0.006,99079.0,99078.0,0.045434]
[1736135587350,0.045436,99075.0,99073.0,0.3608]
[1736135588539,0.048436,99075.0,99073.0,0.3608]
[1736135590048,0.1391313,99075.0,99073.0,0.3608]
[1736135591649,0.048436,99075.0,99073.0,0.3608]
[1736135594547,0.048436,99075.0,99073.0,0.406236]
[1736135597147,0.16936307,99075.0,99073.0,0.406236]
[1736135598753,0.048436,99075.0,99074.0,0.24165374]
[1736135599850,0.16936307,99075.0,99073.0,0.406236]
[1736135601256,0.048436,99075.0,99073.0,0.406236]
[1736135602761,0.048436,99075.0,99074.0,0.24218686]
[1736135604358,0.048436,99075.0,99073.0,0.406236]
[1736135605558,0.12115143,99074.0,99073.0,0.406236]
[1736135606356,0.12115143,99074.0,99073.0,0.045436]
[1736135606659,0.048436,99075.0,99073.0,0.045436]
[1736135607260,0.001,99074.0,99073.0,0.045436]
[1736135607649,0.003,99074.0,99073.0,0.406236]
[1736135608053,0.002,99074.0,99073.0,0.64840579]
[1736135608262,0.003,99075.0,99073.0,0.64840579]
[1736135608760,0.002,99074.0,99073.0,0.64840579]
[1736135608960,0.003,99074.0,99073.0,0.64840579]
[1736135609360,0.003,99074.0,99073.0,0.406236]
[1736135609758,0.045436,99073.0,99070.0,0.30216575]
[1736135610062,0.045437,99071.0,99070.0,0.30216575]
[1736135610862,0.045437,99071.0,99065.0,0.34760575]
[1736135610863,0.045439,99068.0,99065.0,0.34760575]
[1736135612368,0.04544,99066.0,99065.0,0.002]
[1736135615267,0.04544,99066.0,99065.0,0.24414318]
[1736135616571,0.04544,99066.0,99065.0,0.002]
[1736135617067,0.04544,99066.0,99065.0,1.502]
[1736135619070,0.05549458,99066.0,99065.0,1.502]
[1736135628873,0.05549458,99066.0,99065.0,0.002]
[1736135630066,0.05549458,99066.0,99065.0,0.24405076]
[1736135630067,0.1766231,99066.0,99065.0,0.24405076]
[1736135631672,0.05549458,99066.0,99065.0,0.002]
[1736135653799,0.41629458,99066.0,99065.0,0.002]
[1736135654001,0.045444,99057.0,99056.0,0.30216575]
[1736135655194,0.045444,99057.0,99056.0,0.30416575]
[1736135655503,0.046444,99057.0,99056.0,0.008]
[1736135657705,0.045445,99055.0,99044.0,0.30216575]
[1736135658010,0.045449,99047.0,99044.0,0.30216575]
[1736135658798,0.045449,99046.0,99044.0,0.30216575]
[1736135659107,0.045449,99046.0,99044.0,0.004]
[1736135660706,0.046449,99046.0,99044.0,0.004]
[1736135660906,0.046449,99046.0,99041.0,0.05570011]
[1736135660907,0.01115381,99046.0,99041.0,0.05570011]
[1736135661102,0.045451,99042.0,99041.0,0.05570011]
[1736135662808,0.045451,99042.0,99041.0,0.05770011]
[1736135663506,0.046451,99042.0,99041.0,0.05770011]
[1736135664208,0.001,99042.0,99041.0,0.05770011]
[1736135669722,0.001,99042.0,99041.0,0.034]
[1736135675619,0.09079938,99049.0,99041.0,0.034]
[1736135675818,0.09079938,99049.0,99048.0,0.406248]
[1736135676411,0.12111931,99054.0,99053.0,0.045446]
[1736135678120,0.09078538,99057.0,99056.0,0.045444]
[1736135682615,0.12111931,99061.0,99059.0,0.045443]
[1736135684123,0.12311931,99061.0,99059.0,0.045443]
[1736135685123,0.002,99061.0,99059.0,0.045443]
[1736135687931,0.12304883,99061.0,99059.0,0.045443]
[1736135691723,0.002,99061.0,99059.0,0.045443]
[1736135706449,0.12304883,99061.0,99059.0,0.045443]
[1736135707248,0.12304883,99061.0,99059.0,0.050443]
[1736135709542,0.12304883,99061.0,99060.0,1.5]
[1736135710247,0.12304883,99061.0,99060.0,1.8608]
[1736135710454,0.18141811,99075.0,99074.0,0.045436]
[1736135711044,0.18141811,99075.0,99074.0,1.545436]
[1736135712658,0.3715982,99082.0,99080.0,0.045433]
[1736135712854,0.18141811,99090.0,99089.0,0.045429]
[1736135713549,0.18141811,99090.0,99089.0,1.545429]
[1736135714055,0.00996816,99096.0,99089.0,1.545429]
[1736135714056,0.00996816,99096.0,99093.0,0.045427]
[1736135714257,0.04909176,99099.0,99093.0,0.045427]
[1736135714455,0.04909176,99099.0,99094.0,0.045427]
[1736135715560,0.09067726,99096.0,99094.0,0.045427]
[1736135716656,0.45147726,99098.0,99094.0,0.045427]
[1736135717158,0.45147726,99098.0,99097.0,0.045425]
[1736135717658,0.3608,99098.0,99097.0,0.045425]
[1736135718560,0.3648,99098.0,99097.0,0.045425]
[1736135719157,0.004,99098.0,99097.0,0.045425]
[1736135719362,0.006,99098.0,99097.0,0.045425]
[1736135722566,0.006,99098.0,99097.0,0.406225]
[1736135725356,0.006,99098.0,99097.0,1.906225]
[1736135727067,0.006,99098.0,99097.0,0.3608]
[1736135727467,0.0367,99098.0,99097.0,0.3608]
[1736135729775,0.006,99098.0,99097.0,0.3608]
[1736135730563,0.006,99098.0,99096.0,0.045425]
[1736135731562,0.004,99098.0,99096.0,0.045425]
[1736135731773,0.006,99098.0,99096.0,0.045425]
[1736135732575,0.009,99098.0,99096.0,0.045425]
[1736135732870,0.003,99098.0,99096.0,0.045425]
[1736135733082,0.032,99097.0,99096.0,0.045425]
[1736135733778,0.12251519,99097.0,99096.0,0.045425]
[1736135734276,0.12251519,99097.0,99089.0,0.3608]
[1736135734475,0.045426,99095.0,99089.0,0.406229]
[1736135735473,0.045426,99095.0,99089.0,0.3608]
[1736135735474,0.13594119,99095.0,99089.0,0.3608]
[1736135735674,0.13594119,99095.0,99090.0,0.045428]
[1736135735972,0.13894119,99095.0,99090.0,0.045428]
[1736135736677,0.13994119,99095.0,99092.0,0.045428]
[1736135737078,0.049426,99095.0,99092.0,0.045428]
[1736135737680,0.046426,99095.0,99092.0,0.045428]
[1736135737870,0.049426,99095.0,99092.0,0.045428]
[1736135738374,0.13994119,99095.0,99092.0,0.045428]
[1736135739277,0.09051519,99094.0,99092.0,0.045428]
[1736135740474,0.05949195,99095.0,99092.0,0.045428]
[1736135740668,0.05949195,99095.0,99093.0,0.045427]
[1736135741369,0.002,99094.0,99093.0,0.045427]
[1736135741876,0.15000714,99095.0,99093.0,0.045427]
[1736135742076,0.001,99094.0,99089.0,0.3608]
[1736135742277,0.045427,99093.0,99090.0,0.045428]
[1736135742776,0.045427,99093.0,99091.0,0.045428]
[1736135743688,0.046427,99093.0,99091.0,0.045428]
[1736135744677,0.047427,99093.0,99091.0,0.045428]
[1736135748491,0.002,99093.0,99091.0,0.045428]
[1736135749589,0.001,99093.0,99091.0,0.045428]
[1736135749788,0.001,99093.0,99092.0,1.5]
[1736135750090,0.18141811,99110.0,99101.0,0.045424]
[1736135750284,0.18141811,99110.0,99101.0,0.406224]
[1736135750480,0.15118639,99108.0,99101.0,0.406224]
[1736135750684,0.15118639,99108.0,99107.0,1.545421]
[1736135751789,0.15118639,99108.0,99107.0,1.546421]
[1736135752294,0.045417,99116.0,99107.0,1.501]
[1736135753492,0.045417,99116.0,99107.0,1.546421]
[1736135753493,0.09070301,99108.0,99107.0,1.546421]
[1736135754491,0.09070301,99108.0,99107.0,0.045421]
[1736135754694,0.048417,99116.0,99114.0,0.045417]
[1736135755087,0.045417,99116.0,99114.0,0.045417]
[1736135755890,0.046417,99116.0,99114.0,0.045417]
[1736135756791,0.001,99116.0,99114.0,0.045417]
[1736135756990,0.15118639,99115.0,99114.0,0.045417]
[1736135758299,0.001,99115.0,99114.0,0.045417]
[1736135758797,0.003,99115.0,99114.0,0.045417]
[1736135759892,0.003,99115.0,99114.0,1.545417]
[1736135760890,0.0936244,99115.0,99114.0,1.545417]
[1736135762190,0.003,99115.0,99114.0,1.545417]
[1736135774307,0.0936244,99115.0,99114.0,1.545417]
[1736135775907,0.003,99115.0,99114.0,1.545417]
[1736135785615,0.003,99115.0,99114.0,2.13653872]
[1736135786921,0.003,99115.0,99114.0,1.83437297]
[1736135792933,0.003,99115.0,99114.0,1.545417]
[1736135794521,0.003,99115.0,99114.0,1.84737641]
[1736135796223,0.0938255,99115.0,99114.0,2.13624672]
[1736135797423,0.003,99115.0,99114.0,1.545417]
[1736135801227,0.003,99115.0,99114.0,1.83434493]
[1736135823643,0.09383395,99115.0,99114.0,1.83434493]
[1736135826445,0.003,99115.0,99114.0,1.83434493]
[1736135832246,0.003,99115.0,99114.0,0.28892793]
[1736135832957,0.01328102,99115.0,99114.0,0.28892793]
[1736135833657,0.04418102,99115.0,99114.0,0.28892793]
[1736135834048,0.0339,99115.0,99113.0,0.18124058]
[1736135835141,0.0319,99115.0,99114.0,0.18124058]
[1736135835344,0.0339,99115.0,99114.0,0.18124058]
[1736135836146,0.0329,99115.0,99114.0,0.18124058]
[1736135836348,0.0339,99115.0,99114.0,0.18124058]
[1736135836555,0.0339,99115.0,99112.0,0.045418]
[1736135836556,0.0339,99115.0,99113.0,0.18124058]
[1736135836950,0.0329,99115.0,99113.0,0.18124058]
[1736135837152,0.0339,99115.0,99113.0,0.18124058]
[1736135837651,0.15487159,99115.0,99113.0,0.18124058]
[1736135837850,0.19928959,99115.0,99113.0,0.18124058]
[1736135838047,0.20028959,99115.0,99113.0,0.18124058]
[1736135838944,0.079318,99115.0,99107.0,0.13134058]
[1736135839156,0.04542,99108.0,99107.0,0.13134058]
[1736135839451,0.045423,99103.0,99102.0,0.24165411]
[1736135839651,0.406223,99103.0,99102.0,0.24165411]
[1736135840463,0.045428,99091.0,99090.0,1.545948]
[1736135840759,0.045428,99091.0,99090.0,1.545428]
[1736135840954,0.045428,99091.0,99090.0,1.5]
[1736135841750,0.1360703,99091.0,99090.0,1.5]
[1736135843047,0.0906423,99094.0,99090.0,1.5]
[1736135843350,0.0906423,99094.0,99092.0,0.045428]
[1736135844451,0.045425,99098.0,99091.0,0.0307]
[1736135844750,0.045425,99098.0,99095.0,0.045426]
[1736135845956,0.1360673,99098.0,99095.0,0.045426]
[1736135846460,0.1380673,99098.0,99095.0,0.045426]
[1736135846757,0.1390673,99098.0,99095.0,0.045426]
[1736135847351,0.048425,99098.0,99095.0,0.045426]
[1736135847858,0.045426,99097.0,99095.0,0.045426]
[1736135849051,0.046426,99097.0,99095.0,0.045426]
[1736135849358,0.048426,99097.0,99095.0,0.045426]
[1736135851957,0.045428,99092.0,99091.0,0.0307]
[1736135853450,0.046428,99092.0,99091.0,0.0307]
[1736135854156,0.046428,99092.0,99090.0,1.50056]
[1736135854359,0.046428,99092.0,99090.0,1.5]
[1736135856354,0.045428,99092.0,99090.0,1.5]
[1736135858857,0.4521223,99094.0,99085.0,0.045431]
[1736135859165,0.04543,99088.0,99085.0,0.045431]
[1736135859465,0.04543,99088.0,99086.0,1.5]
[1736135860471,0.04543,99088.0,99086.0,1.501]
[1736135864656,0.09069597,99087.0,99086.0,1.501]
[1736135865960,0.04543,99088.0,99086.0,1.5]
[1736135866271,0.04543,99088.0,99086.0,1.501]
[1736135868673,0.04543,99088.0,99086.0,1.74265411]
[1736135870269,0.04543,99088.0,99086.0,1.501]
[1736135870466,0.04543,99088.0,99086.0,0.001]
[1736135871869,0.05542267,99088.0,99086.0,0.001]
[1736135873462,0.05542267,99088.0,99086.0,0.242732]
[1736135874874,0.05542267,99088.0,99087.0,0.241732]
[1736135876271,0.05542267,99088.0,99087.0,0.242732]
[1736135881676,0.05542267,99088.0,99087.0,0.001]
[1736135885583,0.05542267,99088.0,99087.0,1.501]
[1736135887784,0.05542267,99088.0,99087.0,0.001]
[1736135897297,0.20668333,99088.0,99087.0,0.001]
[1736135898889,0.05542267,99088.0,99087.0,0.001]
[1736135902502,0.1045196,99088.0,99087.0,0.001]
[1736135903503,0.05542267,99088.0,99087.0,0.001]
[1736135907805,0.20689543,99088.0,99087.0,0.001]
[1736135909111,0.05542267,99088.0,99087.0,0.001]
[1736135909811,0.05542267,99088.0,99087.0,0.0332]
[1736135922427,0.20689408,99088.0,99087.0,0.0332]
[1736135924529,0.05542267,99088.0,99087.0,0.0332]
[1736135930536,0.20689408,99088.0,99087.0,0.0332]
[1736135931837,0.10452048,99088.0,99087.0,0.0332]
[1736135933236,0.05542267,99088.0,99087.0,0.0332]
[1736135934342,0.05542267,99088.0,99087.0,0.001]
[1736135935037,0.10452048,99088.0,99087.0,0.001]
[1736135936243,0.20689178,99088.0,99087.0,0.001]
[1736135939137,0.1045213,99088.0,99087.0,0.001]
[1736135940537,0.05542267,99088.0,99087.0,0.001]
[1736135942140,0.1045213,99088.0,99087.0,0.001]
[1736135946843,0.1045213,99088.0,99087.0,1.501]
[1736135947550,0.1045213,99088.0,99087.0,0.001]
[1736135954657,0.20684079,99088.0,99087.0,0.001]
[1736135957158,0.05542267,99088.0,99087.0,0.001]
[1736135960252,0.10451994,99088.0,99087.0,0.001]
[1736135965955,0.28628563,99088.0,99087.0,0.001]
[1736135967259,0.10451994,99088.0,99087.0,0.001]
[1736135975666,0.46531994,99088.0,99087.0,0.001]